fUST/lending_fUST_20250321
["ID","MTS","AMOUNT","RATE_DAILY","PERIOD"]
[356463992,1742491846056,-856.19,0.00032876,21]
[356463994,1742491846066,-856.19,0.00032876,21]
[356463997,1742491846075,-856.19,0.00032876,21]
[356463999,1742491846085,-856.19,0.00032876,21]
[356464000,1742491846094,-856.39,0.00032876,21]
[356464001,1742491846104,-503.4,0.00032876,21]
[356464002,1742491846114,-1543.56,0.00032876,21]
[356464003,1742491846124,-18549.55,0.00032876,21]
[356464004,1742491846133,-589.11,0.00032876,21]
[356464005,1742491846144,-500.0,0.00032876,21]
[356464006,1742491846155,-4671.63,0.00032876,21]
[356464007,1742491846165,-1127.89,0.00032876,21]
[356464008,1742491846175,-22957.47,0.00032876,21]
[356464009,1742491846184,-500.0,0.00032876,21]
[356464010,1742491846194,-500.0,0.00032876,21]
[356464011,1742491846204,-615.3,0.00032876,21]
[356464012,1742491846216,-500.0,0.00032876,21]
[356464014,1742491846227,-500.0,0.00032876,21]
[356464015,1742491846236,-1226.34,0.00032876,21]
[356464016,1742491846246,-14610.59,0.00032876,21]
[356464017,1742491846255,-35413.89,0.00032876,21]
[356464018,1742491846265,-500.0,0.00032876,21]
[356464019,1742491846274,-1154.66,0.00032876,21]
[356464020,1742491846283,-1275.75,0.00032876,21]
[356464021,1742491846293,-500.0,0.00032876,21]
[356464022,1742491846302,-2204.37,0.00032876,21]
[356464023,1742491846311,-1967.5,0.00032876,21]
[356464024,1742491846321,-150.15,0.00032876,21]
[356464025,1742491846332,-34486.5,0.00032876,21]
[356464026,1742491846342,-500.0,0.00032876,21]
[356464027,1742491846351,-2251.48,0.00032876,21]
[356464028,1742491846361,-1390.99,0.00032876,21]
[356464029,1742491846370,-150.15,0.00032876,21]
[356464030,1742491846379,-584.38,0.00032876,21]
[356464031,1742491846389,-500.0,0.00032876,21]
[356464032,1742491846398,-6364.33,0.00032876,2]
[356464033,1742491846408,-151.0,0.00032876,7]
[356464034,1742491846417,-151.0,0.00032876,7]
[356464035,1742491846427,-500.0,0.00032876,21]
[356464036,1742491846436,-151.0,0.00032876,7]
[356464037,1742491846446,-151.0,0.00032876,7]
[356464038,1742491846455,-151.0,0.00032876,7]
[356464039,1742491846465,-721.93,0.00032876,21]
[356464040,1742491846477,-151.0,0.00032876,7]
[356464041,1742491846487,-151.0,0.00032876,7]
[356464042,1742491846496,-286.01882,0.00032876,7]
[356464043,1742491846506,-500.0,0.00032876,21]
[356464044,1742491846516,-500.0,0.00032876,21]
[356464045,1742491846530,-500.0,0.00032876,21]
[356464046,1742491846539,-500.0,0.00032876,21]
[356464047,1742491846549,-579.04,0.00032876,21]
[356464048,1742491846558,-1440.06,0.00032876,21]
[356464049,1742491846568,-8252.02,0.00032876,21]
[356464050,1742491846577,-1304.14,0.00032876,21]
[356464051,1742491846587,-838.13,0.00032876,21]
[356464052,1742491846597,-500.0,0.00032876,21]
[356464053,1742491846607,-500.0,0.00032876,21]
[356464054,1742491846616,-500.0,0.00032876,21]
[356464055,1742491846626,-151.0,0.00032876,7]
[356464056,1742491846635,-151.0,0.00032876,7]
[356464057,1742491846646,-151.0,0.00032876,7]
[356464058,1742491846661,-151.0,0.00032876,7]
[356464059,1742491846675,-151.0,0.00032876,7]
[356464060,1742491846689,-822.88,0.00032876,21]
[356464061,1742491846701,-151.0,0.00032876,7]
[356464062,1742491846711,-151.0,0.00032876,7]
[356464063,1742491846724,-151.0,0.00032876,7]
[356464064,1742491846736,-151.0,0.00032876,7]
[356464065,1742491846749,-151.0,0.00032876,7]
[356464066,1742491846761,-500.0,0.00032876,21]
[356464067,1742491846772,-151.0,0.00032876,7]
[356464068,1742491846785,-151.0,0.00032876,7]
[356464069,1742491846797,-151.0,0.00032876,7]
[356464070,1742491846809,-151.0,0.00032876,7]
[356464071,1742491846823,-500.0,0.00032876,21]
[356464072,1742491846835,-151.0,0.00032876,7]
[356464073,1742491846848,-573.5,0.00032876,21]
[356464074,1742491846860,-151.0,0.00032876,7]
[356464075,1742491846872,-151.0,0.00032876,7]
[356464076,1742491846884,-195.810827,0.00032876,7]
[356464077,1742491846896,-4302.1,0.00032876,21]
[356464078,1742491846907,-302.96427459,0.00032876,30]
[356464079,1742491846918,-4302.1,0.00032876,21]
[356464080,1742491846930,-623.87,0.00032876,21]
[356464081,1742491846943,-4302.1,0.00032876,21]
[356464082,1742491846956,-4302.1,0.00032876,21]
[356464083,1742491846968,-4302.1,0.00032876,21]
[356464084,1742491846982,-4302.1,0.00032876,21]
[356464085,1742491846992,-4302.1,0.00032876,21]
[356464086,1742491847002,-4302.1,0.00032876,21]
[356464087,1742491847014,-500.0,0.00032876,21]
[356464088,1742491847026,-4302.1,0.00032876,21]
[356464089,1742491847038,-20552.2,0.00032876,21]
[356464090,1742491847050,-4302.1,0.00032876,21]
[356464091,1742491847063,-26575.09,0.00032876,21]
[356464092,1742491847076,-4302.1,0.00032876,21]
[356464093,1742491847088,-4302.1,0.00032876,21]
[356464094,1742491847102,-4302.1,0.00032876,21]
[356464095,1742491847118,-4302.1,0.00032876,21]
[356464096,1742491847131,-500.0,0.00032876,21]
[356464097,1742491847147,-4302.1,0.00032876,21]
[356464098,1742491847160,-4302.1,0.00032876,21]
[356464099,1742491847171,-4302.1,0.00032876,21]
[356464100,1742491847185,-4302.1,0.00032876,21]
[356464101,1742491847196,-4302.1,0.00032876,21]
[356464102,1742491847206,-4302.1,0.00032876,21]
[356464103,1742491847219,-4302.1,0.00032876,21]
[356464104,1742491847234,-2891.52,0.00032876,21]
[356464105,1742491847248,-2787.85,0.00032876,21]
[356464106,1742491847260,-4302.1,0.00032876,21]
[356464107,1742491847273,-4302.1,0.00032876,21]
[356464108,1742491847283,-6643.97,0.00032876,21]
[356464109,1742491847295,-1372.56,0.00032876,21]
[356464110,1742491847306,-4302.187796,0.00032876,21]
[356464111,1742491847318,-500.0,0.00032876,21]
[356464112,1742491847330,-500.0,0.00032876,21]
[356464113,1742491847343,-955.9,0.00032876,21]
[356464114,1742491847354,-500.0,0.00032876,21]
[356464115,1742491847366,-500.0,0.00032876,21]
[356464116,1742491847377,-1172.54,0.00032876,21]
[356464117,1742491847388,-6694.67,0.00032876,21]
[356464118,1742491847400,-500.0,0.00032876,21]
[356464119,1742491847411,-2848.33,0.00032876,21]
[356464120,1742491847422,-500.0,0.00032876,21]
[356464121,1742491847433,-1279.31,0.00032876,21]
[356464122,1742491847445,-2069.4,0.00032876,21]
[356464123,1742491847461,-500.0,0.00032876,21]
[356464124,1742491847473,-500.0,0.00032876,21]
[356464125,1742491847484,-500.0,0.00032876,21]
[356464126,1742491847495,-6203.01,0.00032876,21]
[356464127,1742491847506,-685.45,0.00032876,21]
[356464128,1742491847517,-500.0,0.00032876,21]
[356464129,1742491847528,-500.0,0.00032876,21]
[356464130,1742491847539,-2268.2,0.00032876,21]
[356464131,1742491847550,-500.0,0.00032876,21]
[356464132,1742491847560,-500.0,0.00032876,21]
[356464133,1742491847571,-149729.8189822,0.00032876,7]
[356464134,1742491847926,-1503.14143,0.00032876,7]
[356464135,1742491848037,-249196.3795878,0.00032876,7]
[356464136,1742491848048,-1913.81,0.00032876,21]
[356464137,1742491848060,-500.0,0.00032876,21]
[356464138,1742491848070,-1913.81,0.00032876,21]
[356464139,1742491848081,-1913.81,0.00032876,21]
[356464140,1742491848092,-1913.81,0.00032876,21]
[356464141,1742491848103,-500.0,0.00032876,21]
[356464142,1742491848117,-1913.81,0.00032876,21]
[356464143,1742491848128,-500.0,0.00032876,21]
[356464144,1742491848139,-1913.81,0.00032876,21]
[356464145,1742491848154,-1913.81,0.00032876,21]
[356464146,1742491848166,-1913.81,0.00032876,21]
[356464147,1742491848178,-1913.81,0.00032876,21]
[356464148,1742491848190,-1913.81,0.00032876,21]
[356464149,1742491848201,-1913.81,0.00032876,21]
[356464150,1742491848213,-500.0,0.00032876,21]
[356464151,1742491848224,-1913.81,0.00032876,21]
[356464152,1742491848236,-1913.81,0.00032876,21]
[356464153,1742491848247,-1913.81,0.00032876,21]
[356464154,1742491848258,-524.29832116,0.00032876,21]
[356464155,1742491848270,-1913.81,0.00032876,21]
[356464156,1742491848281,-1913.81,0.00032876,21]
[356464157,1742491848292,-1913.81,0.00032876,21]
[356464158,1742491848303,-1469.5,0.00032876,21]
[356464159,1742491848314,-1913.81,0.00032876,21]
[356464160,1742491848325,-1913.81,0.00032876,21]
[356464161,1742491848337,-1913.81,0.00032876,21]
[356464162,1742491848348,-500.0,0.00032876,21]
[356464163,1742491848359,-1913.81,0.00032876,21]
[356464164,1742491848377,-1913.81,0.00032876,21]
[356464165,1742491848399,-1913.81,0.00032876,21]
[356464166,1742491848414,-1913.97618905,0.00032876,21]
[356464167,1742491848425,-642.98310274,0.00032876,21]
[356464168,1742491848436,-12727.02,0.00032876,21]
[356464169,1742491848447,-502.46969791,0.00032876,21]
[356464170,1742491848458,-516.85,0.00032876,21]
[356464171,1742491848469,-151.0,0.00032876,7]
[356464172,1742491848479,-151.0,0.00032876,7]
[356464173,1742491848491,-151.268531,0.00032876,7]
[356464174,1742491848503,-500.0,0.00032876,21]
[356464175,1742491848514,-1423.6,0.00032876,21]
[356464176,1742491848525,-711.29,0.00032876,21]
[356464177,1742491848535,-500.0,0.00032876,21]
[356464178,1742491848546,-540.96984376,0.00032876,21]
[356464179,1742491848557,-502.10990811,0.00032876,21]
[356464180,1742491848570,-2878.94,0.00032876,21]
[356464181,1742491848580,-265.83609948,0.00032876,21]
[356464182,1742491848591,-500.0,0.00032876,21]
[356464183,1742491848603,-1026.51,0.00032876,21]
[356464184,1742491848615,-3377.09,0.00032876,21]
[356464185,1742491848626,-699.85,0.00032876,21]
[356464186,1742491848637,-500.0,0.00032876,21]
[356464187,1742491848648,-500.0,0.00032876,21]
[356464188,1742491848659,-151.0,0.00032876,7]
[356464189,1742491848670,-690.79,0.00032876,21]
[356464190,1742491848680,-271.623646,0.00032876,7]
[356464191,1742491848691,-501.08219259,0.00032876,21]
[356464192,1742491848702,-3366.68,0.00032876,21]
[356464193,1742491848713,-584.42,0.00032876,21]
[356464194,1742491848724,-151.0,0.00032876,7]
[356464195,1742491848735,-151.0,0.00032876,7]
[356464196,1742491848746,-151.0,0.00032876,7]
[356464197,1742491848757,-151.0,0.00032876,7]
[356464198,1742491848768,-151.0,0.00032876,7]
[356464199,1742491848779,-500.0,0.00032876,21]
[356464200,1742491848790,-151.0,0.00032876,7]
[356464201,1742491848801,-619.51,0.00032876,21]
[356464202,1742491848811,-5385.05,0.00032876,21]
[356464203,1742491848822,-500.0,0.00032876,21]
[356464204,1742491848832,-500.0,0.00032876,21]
[356464205,1742491848843,-699.09,0.00032876,21]
[356464206,1742491848854,-500.0,0.00032876,21]
[356464207,1742491848866,-501.59581578,0.00032876,21]
[356464208,1742491848876,-500.0,0.00032876,21]
[356464209,1742491848887,-500.0,0.00032876,21]
[356464210,1742491848897,-1239.83,0.00032876,21]
[356464211,1742491848906,-500.0,0.00032876,14]
[356464212,1742491848915,-564.31,0.00032876,21]
[356464213,1742491848925,-500.0,0.00032876,2]
[356464214,1742491848935,-541.96,0.00032876,21]
[356464215,1742491848944,-501.68439323,0.00032876,21]
[356464216,1742491848954,-2319.42,0.00032876,21]
[356464217,1742491848963,-12027.23,0.00032876,21]
[356464218,1742491848972,-500.0,0.00032876,21]
[356464219,1742491848981,-500.0,0.00032876,21]
[356464220,1742491848991,-152.221674,0.00032876,7]
[356464221,1742491849000,-926.75,0.00032876,21]
[356464222,1742491849010,-1573.04,0.00032876,21]
[356464223,1742491849019,-683.53,0.00032876,21]
[356464224,1742491849029,-583.02,0.00032876,21]
[356464225,1742491849038,-1105.51,0.00032876,21]
[356464226,1742491849048,-809.55,0.00032876,21]
[356464227,1742491849057,-1349.82,0.00032876,21]
[356464228,1742491849067,-500.0,0.00032876,21]
[356464229,1742491849076,-1768.95,0.00032876,21]
[356464230,1742491849086,-500.0,0.00032876,21]
[356464231,1742491849096,-156.49220738,0.00032876,21]
[356464232,1742491849106,-15600.14,0.00032876,21]
[356464233,1742491849117,-500.0,0.00032876,21]
[356464234,1742491849126,-500.0,0.00032876,21]
[356464235,1742491849136,-725.83,0.00032876,21]
[356464236,1742491849151,-500.0,0.00032876,2]
[356464237,1742491849161,-511.71216605,0.00032876,21]
[356464238,1742491849171,-150.15,0.00032876,21]
[356464239,1742491849180,-500.0,0.00032876,21]
[356464240,1742491849190,-500.0,0.00032876,21]
[356464241,1742491849200,-9332.2,0.00032876,21]
[356464242,1742491849210,-671.0,0.00032876,21]
[356464243,1742491849220,-720.39,0.00032876,21]
[356464244,1742491849230,-200.01820648,0.00032876,2]
[356464245,1742491849240,-150.51321847,0.00032876,21]
[356464246,1742491849657,-608.97,0.00032876,21]
[356464247,1742491849675,-150.15,0.00032876,21]
[356464248,1742491849692,-500.0,0.00032876,21]
[356464249,1742491849702,-150.15,0.00032876,21]
[356464250,1742491849712,-500.0,0.00032876,21]
[356464251,1742491849721,-500.0,0.00032876,21]
[356464252,1742491849730,-500.0,0.00032876,21]
[356464253,1742491849740,-500.0,0.00032876,21]
[356464254,1742491849749,-213.77,0.00032876,21]
[356464255,1742491849759,-500.0,0.00032876,21]
[356464256,1742491849768,-500.0,0.00032876,2]
[356464257,1742491849778,-150.15,0.00032876,21]
[356464258,1742491849788,-198.60346383,0.00032876,21]
[356464259,1742491849797,-542.36,0.00032876,21]
[356464260,1742491849807,-500.0,0.00032876,21]
[356464261,1742491849816,-500.0,0.00032876,21]
[356464262,1742491849826,-848.62,0.00032876,21]
[356464263,1742491849835,-2525.3,0.00032876,21]
[356464264,1742491849845,-500.0,0.00032876,21]
[356464265,1742491849854,-500.0,0.00032876,21]
[356464266,1742491849864,-500.0,0.00032876,21]
[356464267,1742491849874,-9437.47,0.00032876,21]
[356464268,1742491849883,-500.0,0.00032876,21]
[356464269,1742491849892,-150.15,0.00032876,2]
[356464270,1742491849901,-500.0,0.00032876,21]
[356464271,1742491849911,-1457.1,0.00032876,21]
[356464272,1742491849920,-169.40975629,0.00032877,2]
[356464273,1742491849930,-500.0,0.00032877,2]
[356464274,1742491849939,-1708.44535985,0.00032877,7]
[356464275,1742491849948,-1708.44535985,0.00032877,7]
[356464276,1742491849958,-1708.44535985,0.00032877,7]
[356464277,1742491849967,-1708.44535985,0.00032877,7]
[356464278,1742491849976,-1708.44535985,0.00032877,7]
[356464279,1742491849986,-1708.44535985,0.00032877,7]
[356464280,1742491849995,-1708.44535985,0.00032877,7]
[356464281,1742491850004,-1708.44535985,0.00032877,7]
[356464282,1742491850014,-1708.44535985,0.00032877,7]
[356464283,1742491850023,-1708.44535985,0.00032877,7]
[356464284,1742491850033,-1708.44535985,0.00032877,7]
[356464285,1742491850042,-1708.44535985,0.00032877,7]
[356464286,1742491850051,-1708.44535985,0.00032877,7]
[356464287,1742491850060,-1708.44535985,0.00032877,7]
[356464288,1742491850070,-1708.44535985,0.00032877,7]
[356464289,1742491850079,-1708.44535985,0.00032877,7]
[356464290,1742491850089,-1708.44535985,0.00032877,7]
[356464291,1742491850098,-1708.44535985,0.00032877,7]
[356464292,1742491850108,-1708.44535985,0.00032877,7]
[356464293,1742491850117,-1708.44535985,0.00032877,7]
[356464294,1742491850126,-1708.44535985,0.00032877,7]
[356464295,1742491850137,-1708.44535985,0.00032877,7]
[356464296,1742491850148,-1708.44535985,0.00032877,7]
[356464297,1742491850158,-1708.44535985,0.00032877,7]
[356464298,1742491850167,-1708.44535985,0.00032877,7]
[356464299,1742491850177,-1708.44535985,0.00032877,7]
[356464300,1742491850188,-1708.44535985,0.00032877,7]
[356464301,1742491850198,-1708.44535985,0.00032877,7]
[356464302,1742491850207,-1708.44535985,0.00032877,7]
[356464303,1742491850216,-1708.44535985,0.00032877,7]
[356464304,1742491850228,-1708.44535985,0.00032877,7]
[356464305,1742491850238,-1708.44535985,0.00032877,7]
[356464306,1742491850247,-1708.44535985,0.00032877,7]
[356464307,1742491850257,-1708.44535985,0.00032877,7]
[356464308,1742491850266,-1708.44535985,0.00032877,7]
[356464309,1742491850276,-1708.44535985,0.00032877,7]
[356464310,1742491850286,-1708.44535985,0.00032877,7]
[356464311,1742491850296,-1708.44535985,0.00032877,7]
[356464312,1742491850306,-1708.44535985,0.00032877,7]
[356464313,1742491850317,-1708.44535985,0.00032877,7]
[356464314,1742491850326,-1708.44535985,0.00032877,7]
[356464315,1742491850335,-1708.44535985,0.00032877,7]
[356464316,1742491850345,-1708.44535985,0.00032877,7]
[356464317,1742491850355,-1708.44535985,0.00032877,7]
[356464318,1742491850365,-1708.44535985,0.00032877,7]
[356464319,1742491850374,-1708.44535985,0.00032877,7]
[356464320,1742491850384,-1708.44535985,0.00032877,7]
[356464321,1742491850393,-1708.44535985,0.00032877,7]
[356464322,1742491850403,-1708.44535985,0.00032877,7]
[356464323,1742491850412,-1708.44535985,0.00032877,7]
[356464324,1742491850421,-1708.44535985,0.00032877,7]
[356464325,1742491850431,-2010.79310358,0.00032877,7]
[356464326,1742491850441,-2010.79310358,0.00032877,7]
[356464327,1742491850450,-2010.79310358,0.00032877,7]
[356464328,1742491850460,-2010.79310358,0.00032877,7]
[356464329,1742491850470,-2010.79310358,0.00032877,7]
[356464330,1742491850479,-2010.79310358,0.00032877,7]
[356464331,1742491850489,-2010.79310358,0.00032877,7]
[356464332,1742491850499,-2010.79310358,0.00032877,7]
[356464333,1742491850509,-2010.79310358,0.00032877,7]
[356464334,1742491850519,-2010.79310358,0.00032877,7]
[356464335,1742491850529,-2010.79310358,0.00032877,7]
[356464336,1742491850538,-2010.79310358,0.00032877,7]
[356464337,1742491850548,-2010.79310358,0.00032877,7]
[356464338,1742491850557,-2010.79310358,0.00032877,7]
[356464339,1742491850567,-2010.79310358,0.00032877,7]
[356464340,1742491850578,-2010.79310358,0.00032877,7]
[356464341,1742491850587,-2010.79310358,0.00032877,7]
[356464342,1742491850597,-2010.79310358,0.00032877,7]
[356464343,1742491850607,-2010.79310358,0.00032877,7]
[356464344,1742491850618,-2010.79310358,0.00032877,7]
[356464345,1742491850627,-2010.79310358,0.00032877,7]
[356464346,1742491850637,-2010.79310358,0.00032877,7]
[356464347,1742491850647,-2010.79310358,0.00032877,7]
[356464348,1742491850656,-2010.79310358,0.00032877,7]
[356464349,1742491850665,-2010.79310358,0.00032877,7]
[356464350,1742491850675,-2010.79310358,0.00032877,7]
[356464351,1742491850685,-2010.79310358,0.00032877,7]
[356464352,1742491850694,-2010.79310358,0.00032877,7]
[356464353,1742491850704,-2010.79310358,0.00032877,7]
[356464354,1742491850714,-2010.79310358,0.00032877,7]
[356464355,1742491850723,-2010.79310358,0.00032877,7]
[356464356,1742491850733,-2010.79310358,0.00032877,7]
[356464357,1742491850743,-2010.79310358,0.00032877,7]
[356464358,1742491850753,-2010.79310361,0.00032877,7]
[356464359,1742491850762,-2010.79310361,0.00032877,7]
[356464360,1742491850775,-2010.79310361,0.00032877,7]
[356464361,1742491850791,-167.5,0.000329,7]
[356464362,1742491850801,-10319.61799681,0.000329,30]
[356464363,1742491850817,-6140.33200319,0.000329,30]
[356464364,1742491850827,-8070.75,0.000329,30]
[356464365,1742491850837,-12365.71496127,0.000329,30]
[356464366,1742491850848,-7368.89503873,0.000329,30]
[356464367,1742491850858,-3571.56663467,0.000329,30]
[356464368,1742491850869,-1241.8847696,0.000329,30]
[356464371,1742492046540,194.274724,0.00010959,2]
[356464372,1742492047651,-155.3917009,0.00016438,2]
[356464417,1742493032208,-38.8830231,0.00016438,2]
[356464419,1742493032219,-194.274724,0.00021918,2]
[356464421,1742493032231,-6249.5379401,0.00027164,2]
[356464423,1742493032241,-194.274724,0.00027397,2]
[356464425,1742493032252,-300.0,0.00028485,2]
[356464427,1742493032263,-417.94044697,0.00028486,2]
[356464430,1742493032274,-160.0,0.00028486,2]
[356464432,1742493032285,-775.8394308,0.000289,5]
[356464434,1742493032295,-775.83943078,0.00029141,5]
[356464436,1742493032306,-775.83943078,0.00029383,5]
[356464438,1742493032318,-8302.17668313,0.00029623,2]
[356464440,1742493032329,-775.83943078,0.00029624,5]
[356464442,1742493032341,-775.83943078,0.00029866,5]
[356464445,1742493032353,-335.40898622,0.00029999,2]
[356464447,1742493032364,-33346.18367218,0.0003,4]
[356464449,1742493032375,-167.696372,0.00030051,2]
[356464453,1742493032400,-775.83943078,0.00030107,5]
[356464458,1742493032414,-775.83943078,0.00030348,5]
[356464462,1742493032427,-775.83943078,0.0003059,5]
[356464466,1742493032440,-420.0,0.00030749,2]
[356464470,1742493032454,-775.83943078,0.00030831,5]
[356464473,1742493032469,-775.83943078,0.00031072,5]
[356464478,1742493032482,-167.696372,0.00031253,2]
[356464481,1742493032495,-775.83943078,0.00031314,6]
[356464484,1742493032508,-775.83943078,0.00031555,6]
[356464489,1742493032525,-775.83943078,0.00031797,6]
[356464492,1742493032537,-775.83943078,0.00032038,6]
[356464495,1742493032551,-775.83943078,0.00032279,6]
[356464499,1742493032564,-344.3893066,0.00032328,2]
[356464503,1742493032577,-475.50557499,0.00032328,2]
[356464506,1742493032590,-15000.0,0.00032329,5]
[356464509,1742493032603,-1913.0,0.00032408,2]
[356464512,1742493032615,-399.0,0.00032408,2]
[356464516,1742493032627,-12458.93820146,0.00032453,2]
[356464520,1742493032639,-775.83943078,0.00032521,6]
[356464522,1742493032651,-520.94,0.0003259,3]
[356464524,1742493032664,-5000.0,0.000326,10]
[356464527,1742493032676,-173.234,0.00032676,33]
[356464529,1742493032688,-168.03758605,0.00032696,2]
[356464532,1742493032706,-168.03758604,0.00032723,2]
[356464534,1742493032720,-168.03758604,0.00032749,2]
[356464537,1742493032734,-687.16625134,0.00032762,6]
[356464540,1742493032752,-88.67317944,0.00032762,6]
[356464542,1742493032766,-179.97669793,0.00032776,2]
[356464546,1742493032790,-293.12301074,0.00032776,2]
[356464549,1742493032815,-1103.82021249,0.00032776,2]
[356464552,1742493032829,-1256.79446506,0.00032776,2]
[356464580,1742493038124,-13190.11185196,0.00032776,2]
[356464581,1742493038178,-16015.27854567,0.00032776,2]
[356464582,1742493038235,-74799.18631661,0.00032776,2]
[356464583,1742493038247,-168.03758604,0.00032776,2]
[356464584,1742493038258,-5000.0,0.000328,6]
[356464585,1742493038269,-151.0,0.000328,18]
[356464586,1742493038280,-500.0,0.00032873,5]
[356464587,1742493038291,-500.0,0.00032873,5]
[356464588,1742493038302,-500.0,0.00032873,5]
[356464589,1742493038313,-500.0,0.00032873,5]
[356464590,1742493038325,-500.0,0.00032873,5]
[356464591,1742493038338,-500.0,0.00032873,5]
[356464592,1742493038349,-500.0,0.00032873,5]
[356464593,1742493038360,-500.0,0.00032873,5]
[356464594,1742493038372,-500.0,0.00032873,5]
[356464595,1742493038383,-500.0,0.00032873,5]
[356464596,1742493038394,-500.0,0.00032873,5]
[356464597,1742493038405,-500.0,0.00032873,5]
[356464598,1742493038415,-500.0,0.00032873,5]
[356464599,1742493038426,-500.0,0.00032873,5]
[356464600,1742493038436,-500.0,0.00032873,5]
[356464601,1742493038447,-500.0,0.00032873,5]
[356464602,1742493038458,-500.0,0.00032873,5]
[356464603,1742493038469,-500.5160555,0.00032873,5]
[356464604,1742493038480,-500.0,0.00032873,5]
[356464605,1742493038491,-500.0,0.00032873,5]
[356464606,1742493038502,-500.0,0.00032873,5]
[356464607,1742493038513,-432.34,0.00032876,2]
[356464608,1742493038526,-432.34,0.00032876,2]
[356464609,1742493038536,-432.34,0.00032876,2]
[356464610,1742493038547,-432.34,0.00032876,2]
[356464611,1742493038559,-432.34,0.00032876,2]
[356464612,1742493038570,-432.34,0.00032876,2]
[356464613,1742493038581,-432.34,0.00032876,2]
[356464614,1742493038591,-432.34,0.00032876,2]
[356464615,1742493038602,-432.34,0.00032876,2]
[356464616,1742493038612,-432.34,0.00032876,2]
[356464617,1742493038623,-500.0,0.00032876,21]
[356464618,1742493038633,-500.0,0.00032876,21]
[356464619,1742493038644,-500.0,0.00032876,21]
[356464620,1742493038654,-474.53978801,0.00032876,7]
[356464621,1742493038664,-500.0,0.00032876,21]
[356464622,1742493038676,-602.77,0.00032876,21]
[356464623,1742493038687,-500.0,0.00032876,21]
[356464624,1742493038698,-500.0,0.00032876,21]
[356464625,1742493038708,-500.0,0.00032876,21]
[356464626,1742493038719,-671.27,0.00032876,21]
[356464627,1742493038729,-500.0,0.00032876,21]
[356464628,1742493038740,-500.0,0.00032876,21]
[356464629,1742493038750,-820.99,0.00032876,21]
[356464630,1742493038761,-2302.14,0.00032876,21]
[356464631,1742493038771,-1172.6,0.00032876,21]
[356464632,1742493038782,-500.0,0.00032876,21]
[356464633,1742493038792,-500.0,0.00032876,5]
[356464634,1742493038802,-287.54103743,0.00032876,21]
[356464635,1742493038813,-500.0,0.00032876,21]
[356464636,1742493038823,-546.75621077,0.00032876,21]
[356464637,1742493038834,-500.0,0.00032876,21]
[356464638,1742493038845,-1035.49,0.00032876,21]
[356464639,1742493038855,-500.0,0.00032876,21]
[356464640,1742493038866,-500.0,0.00032876,21]
[356464641,1742493038877,-500.0,0.00032876,21]
[356464642,1742493038888,-553.25,0.00032876,21]
[356464643,1742493038898,-500.0,0.00032876,21]
[356464644,1742493038908,-500.0,0.00032876,21]
[356464645,1742493038919,-500.0,0.00032876,21]
[356464646,1742493038930,-500.0,0.00032876,21]
[356464647,1742493038941,-500.0,0.00032876,21]
[356464648,1742493038952,-596.02,0.00032876,21]
[356464649,1742493038963,-500.0,0.00032876,21]
[356464650,1742493038973,-500.0,0.00032876,21]
[356464651,1742493038984,-523.06,0.00032876,21]
[356464652,1742493038995,-507.69,0.00032876,21]
[356464653,1742493039006,-500.0,0.00032876,21]
[356464654,1742493039017,-500.0,0.00032876,21]
[356464655,1742493039027,-500.0,0.00032876,21]
[356464656,1742493039038,-500.0,0.00032876,21]
[356464657,1742493039049,-500.0,0.00032876,21]
[356464658,1742493039059,-500.0,0.00032876,21]